[Event "Turkish Super League 2019"]
[Site "Konya"]
[Date "2019.07.21"]
[Round "6"]
[White "Gadimbayli, Abdulla"]
[Black "Rasulov, Vugar"]
[Result "1/2-1/2"]
[ECO "B51"]
[WhiteElo "2414"]
[BlackElo "2534"]
[Annotator "ChessBase"]
[PlyCount "68"]
[EventDate "2019.07.17"]
[EventType "team-tourn"]
[EventCountry "TUR"]
[SourceTitle "playchess.com"]
[Source "ChessBase"]
[SourceQuality "1"]
[TimeControl "40/5400+30:1800+30"]

1. e4 {[%emt 0:00:30]} c5 {[%emt 0:01:30]} 2. Nf3 {[%emt 0:00:00]} d6 {[%emt 0:00:30]} 3. Bb5+ {[%emt 0:00:00]} Nd7 {[%emt 0:01:30]} 4. O-O {[%emt 0:00:30]} a6 {[%emt 0:00:00]} 5. Be2 {[%emt 0:00:00]} Ngf6 {[%emt 0:00:00]} 6. d3 {[%emt 0:00:00]} e6 {[%emt 0:01:30]} 7. a4 {[%emt 0:00:00]} b6 {[%emt 0:00:30]} 8. Na3 {[%emt 0:03:00]} Bb7 {[%emt 0:01:30]} 9. Bf4 {[%emt 0:02:30]} Be7 {[%emt 0:01:30]} 10. Nc4 {[%emt 0:02:30]} e5 {[%emt 0:05:30]} 11. Bg3 {[%emt 0:02:30]} Nh5 {[%emt 0:02:30]} 12. Bh4 {[%emt 0:03:30]} Nhf6 {[%emt 0:00:00]} 13. Ne3 {[%emt 0:03:30]} g6 {[%emt 0:00:00]} 14. Nd2 {[%emt 0:00:30]} O-O {[%emt 0:03:30]} 15. c3 {[%emt 0:14:30]} d5 {[%emt 0:08:30]} 16. exd5 {[%emt 0:04:30]} Nxd5 {[%emt 0:00:30]} 17. Bxe7 {[%emt 0:01:30]} Qxe7 {[%emt 0:00:30]} 18. Bf3 {[%emt 0:08:30]} N7f6 {[%emt 0:05:30]} 19. Nxd5 {[%emt 0:08:30]} Bxd5 {[%emt 0:00:30]} 20. Re1 {[%emt 0:01:30]} Rad8 {[%emt 0:02:30]} 21. Bxd5 {[%emt 0:10:30]} Rxd5 {[%emt 0:01:30]} 22. Qb3 {[%emt 0:00:30]} Rb8 {[%emt 0:05:30]} 23. Nf3 {[%emt 0:05:30]} Qd6 {[%emt 0:02:30]} 24. h3 {[%emt 0:08:29]} Kg7 {[%emt 0:03:30]} 25. Re3 {[%emt 0:00:49]} b5 {[%emt 0:04:30]} 26. axb5 {[%emt 0:00:06]} axb5 {[%emt 0:00:30]} 27. Ra7 {[%emt 0:00:52]} c4 {[%emt 0:01:30]} 28. dxc4 {[%emt 0:00:56]} bxc4 {[%emt 0:00:00]} 29. Qxc4 {[%emt 0:00:08]} e4 {[%emt 0:01:00]} 30. Nd4 {[%emt 0:00:57]} Rxb2 {[%emt 0:00:30]} 31. g3 {[%emt 0:01:20]} Rb8 {[%emt 0:05:30]} 32. Kg2 {[%emt 0:03:44]} h5 {[%emt 0:04:30]} 33. Rc7 {[%emt 0:03:55]} Rb6 {[%emt 0:03:30]} 34. Ne2 {[%emt 0:01:36]} h4 {[%emt 0:13:30]} 1/2-1/2

[Event "Turkish Super League 2019"]
[Site "Konya"]
[Date "2019.07.21"]
[Round "6"]
[White "Gulbas, Cemil"]
[Black "Ertan, Can"]
[Result "1/2-1/2"]
[ECO "C54"]
[WhiteElo "2380"]
[BlackElo "2396"]
[Annotator "NA"]
[PlyCount "115"]
[EventDate "2019.07.17"]
[EventType "team-tourn"]
[EventCountry "TUR"]
[SourceTitle "playchess.com"]
[Source "ChessBase"]
[SourceQuality "1"]
[TimeControl "40/5400+30:1800+30"]

1. e4 e5 2. Nf3 Nc6 3. Bc4 Bc5 4. c3 Nf6 5. d3 O-O 6. Bg5 d6 7. Bb3 h6 8. Bh4 a6 9. Nbd2 Be6 10. Nf1 g5 11. Bg3 d5 12. Qe2 dxe4 13. dxe4 Bxb3 14. axb3 Qd6 15. h4 g4 16. N3d2 Rad8 17. h5 Kh7 18. Bh4 Rd7 19. Nc4 Qe6 20. Bxf6 Qxf6 21. Nce3 Rg8 22. Rd1 Rxd1+ 23. Kxd1 Qf4 24. Ng3 Rd8+ 25. Kc2 Ne7 26. Rf1 Rd6 27. b4 Ba7 28. Nef5 Nxf5 29. Nxf5 Rd7 30. f3 gxf3 31. Rxf3 Qg5 32. Rg3 Qf4 33. Kb3 c5 34. bxc5 Bxc5 35. Rg7+ Kh8 36. Qc4 Qf2 37. Ka2 b5 38. Qb3 Qxf5 39. exf5 Kxg7 {[%emt 1:48:27]} 40. Qc2 {[%emt 1:18:00]} Rd6 {[%emt 0:00:00]} 41. Qe4 {[%emt 0:31:30]} Kf6 {[%emt 0:02:03]} 42. g4 {[%emt 0:01:30]} Bb6 {[%emt 0:01:30]} 43. g5+ {[%emt 0:02:30]} Kxg5 {[%emt 0:00:30]} 44. Qxe5 {[%emt 0:00:30]} Rf6 {[%emt 0:00:30]} 45. Qb8 {[%emt 0:05:30]} Bf2 {[%emt 0:02:30]} 46. Qd8 {[%emt 0:03:30]} Bh4 {[%emt 0:01:30]} 47. b3 {[%emt 0:02:20]} Kxh5 {[%emt 0:00:30]} 48. c4 {[%emt 0:00:24]} Rxf5 {[%emt 0:02:30]} 49. Qd1+ {[%emt 0:00:05]} Kg6 {[%emt 0:00:00]} 50. c5 {[%emt 0:01:26]} Bg3 {[%emt 0:05:38]} 51. Qd3 {[%emt 0:01:06]} Be5 {[%emt 0:02:08]} 52. c6 {[%emt 0:01:01]} h5 {[%emt 0:00:09]} 53. Kb1 {[%emt 0:03:01]} f6 {[%emt 0:02:17]} 54. Qc2 {[%emt 0:02:36]} Bc7 {[%emt 0:02:50]} 55. Qe4 {[%emt 0:00:55]} Be5 {[%emt 0:00:30]} 56. Qc2 {[%emt 0:00:07]} Bc7 {[%emt 0:00:05]} 57. Qe4 {[%emt 0:00:30]} Be5 {[%emt 0:00:00]} 58. Qc2 {[%emt 0:00:11]} 1/2-1/2

[Event "Turkish Super League 2019"]
[Site "Konya"]
[Date "2019.07.21"]
[Round "6"]
[White "Buksa, Nataliya"]
[Black "Tsolakidou, Stavroula"]
[Result "1-0"]
[ECO "C70"]
[WhiteElo "2379"]
[BlackElo "2423"]
[Annotator "NA"]
[PlyCount "71"]
[EventDate "2019.07.17"]
[EventType "team-tourn"]
[EventCountry "TUR"]
[SourceTitle "playchess.com"]
[Source "ChessBase"]
[SourceQuality "1"]
[TimeControl "40/5400+30:1800+30"]

1. e4 {[%emt 0:00:30]} e5 {[%emt 0:00:30]} 2. Nf3 {[%emt 0:00:30]} Nc6 {[%emt 0:00:00]} 3. Bb5 {[%emt 0:05:30]} g6 {[%emt 0:00:00]} 4. c3 {[%emt 0:00:00]} a6 {[%emt 0:00:30]} 5. Ba4 {[%emt 0:00:00]} Bg7 {[%emt 0:00:30]} 6. d4 {[%emt 0:00:30]} exd4 {[%emt 0:00:30]} 7. cxd4 {[%emt 0:00:00]} b5 {[%emt 0:00:30]} 8. Bc2 {[%emt 0:00:00]} d6 {[%emt 0:05:30]} 9. d5 {[%emt 0:08:30]} Na5 {[%emt 0:00:30]} 10. Bd2 {[%emt 0:00:30]} Bxb2 {[%emt 0:07:30]} 11. Bxa5 {[%emt 0:00:30]} Bxa1 {[%emt 0:00:30]} 12. Nc3 {[%emt 0:02:30]} Bb2 {[%emt 0:00:30]} 13. O-O {[%emt 0:00:30]} Nf6 {[%emt 0:23:30]} 14. Qd2 {[%emt 0:24:30]} O-O {[%emt 0:08:30]} 15. Nd1 {[%emt 0:13:30]} Ba3 {[%emt 0:02:30]} 16. Bc3 {[%emt 0:01:30]} Ne8 {[%emt 0:11:30]} 17. Ne3 {[%emt 0:07:30]} Bc5 {[%emt 0:02:30]} 18. Ba1 {[%emt 0:05:30]} Bd7 {[%emt 0:12:30]} 19. Nd4 {[%emt 0:00:30]} Qh4 {[%emt 0:06:09]} 20. Nc6 {[%emt 0:09:16]} h6 {[%emt 0:00:54]} 21. g3 {[%emt 0:01:55]} Qg5 {[%emt 0:03:15]} 22. Qc3 {[%emt 0:02:11]} Kh7 {[%emt 0:01:15]} 23. h4 {[%emt 0:00:29]} b4 {[%emt 0:08:58]} 24. Qd3 {[%emt 0:01:13]} Bxc6 {[%emt 0:00:48]} 25. hxg5 {[%emt 0:00:43]} Bb5 {[%emt 0:00:30]} 26. Nc4 {[%emt 0:00:00]} hxg5 {[%emt 0:00:33]} 27. Kg2 {[%emt 0:00:04]} Ng7 {[%emt 0:00:00]} 28. g4 {[%emt 0:01:26]} Kg8 {[%emt 0:00:05]} 29. Rh1 {[%emt 0:00:53]} f6 {[%emt 0:00:35]} 30. Rh6 {[%emt 0:02:16]} Rf7 {[%emt 0:03:01]} 31. Qh3 {[%emt 0:00:40]} Rff8 {[%emt 0:00:09]} 32. Ne3 {[%emt 0:02:32]} Kf7 {[%emt 0:00:50]} 33. Rh7 {[%emt 0:00:03]} Rg8 {[%emt 0:00:58]} 34. Qf3 {[%emt 0:00:11]} Raf8 {[%emt 0:00:18]} 35. Qxf6+ {[%emt 0:00:53]} Ke8 {[%emt 0:00:30]} 36. Qxg6+ {[%emt 0:00:00]} 1-0

[Event "Turkish Super League 2019"]
[Site "Konya"]
[Date "2019.07.21"]
[Round "6"]
[White "Arat, Ufuk Sezen"]
[Black "Samani, Yamac"]
[Result "0-1"]
[ECO "E05"]
[WhiteElo "2376"]
[BlackElo "2266"]
[Annotator "NA"]
[PlyCount "90"]
[EventDate "2019.07.17"]
[EventType "team-tourn"]
[EventCountry "TUR"]
[SourceTitle "playchess.com"]
[Source "ChessBase"]
[SourceQuality "1"]
[TimeControl "40/5400+30:1800+30"]

1. d4 Nf6 2. c4 e6 3. g3 d5 4. Bg2 Be7 5. Nf3 O-O 6. O-O dxc4 7. Qa4 a6 8. Qxc4 b5 9. Qc2 Bb7 10. Bd2 Be4 11. Qc1 Nc6 12. Nc3 Bxf3 13. Bxf3 Nxd4 14. Bxa8 Qxa8 15. Bf4 c5 16. Be5 Rd8 17. Rd1 Ng4 18. Bxd4 cxd4 19. Nb1 d3 20. Qf4 dxe2 21. Rxd8+ Bxd8 22. Nc3 h5 23. Re1 b4 24. Qe4 Qa7 25. Rxe2 bxc3 26. bxc3 Nxf2 27. Qc6 Ng4+ 28. Kg2 Bf6 29. c4 Ne3+ 30. Kf3 Nf5 31. Kg2 Nd4 32. Qc8+ Kh7 33. Rd2 Qb6 34. Qa8 Nf5 35. Qe4 Qe3 36. Qd3 Bc3 37. Rd1 Bd4 38. Kh1 Qe5 39. Qf3 g6 40. Rc1 Kg7 {[%emt 1:15:00]} 41. Qf4 {[%emt 1:51:30]} Qc5 {[%emt 0:30:30]} 42. Qe4 {[%emt 0:00:30]} Nd6 {[%emt 0:00:30]} 43. Qe2 {[%emt 0:00:30]} e5 {[%emt 0:00:30]} 44. h3 {[%emt 0:00:30]} Nf5 {[%emt 0:00:30]} 45. Kh2 {[%emt 0:00:00]} Nxg3 {[%emt 0:01:30]} 0-1

[Event "Turkish Super League 2019"]
[Site "Konya"]
[Date "2019.07.21"]
[Round "6"]
[White "Can, Isik"]
[Black "Ozer, Omer Faruk"]
[Result "1-0"]
[ECO "B33"]
[WhiteElo "2374"]
[BlackElo "2369"]
[Annotator "NA"]
[PlyCount "109"]
[EventDate "2019.07.17"]
[EventType "team-tourn"]
[EventCountry "TUR"]
[SourceTitle "playchess.com"]
[Source "ChessBase"]
[SourceQuality "1"]
[TimeControl "40/5400+30:1800+30"]

1. e4 c5 2. Nf3 Nc6 3. d4 cxd4 4. Nxd4 Nf6 5. Nc3 e5 6. Ndb5 d6 7. Bg5 a6 8. Na3 Be6 9. Nc4 Rb8 10. Nd5 Bxd5 11. exd5 Na7 12. a4 Be7 13. Be2 O-O 14. Be3 Nc8 15. O-O Nd7 16. f3 Bg5 17. Bf2 Ndb6 18. Nxb6 Nxb6 19. a5 Nd7 20. b4 Qf6 21. c4 Qh6 22. Qb3 Rbc8 23. Ra2 Rfe8 24. Bd3 Be3 25. Bxh7+ Qxh7 26. Bxe3 f5 27. c5 f4 28. Bf2 Nf6 29. cxd6 Rcd8 30. Bc5 e4 31. fxe4 Qxe4 32. Rd2 g5 33. g3 Kf7 34. Qd3 Re5 35. Qxe4 Rxe4 36. Kg2 Kg6 37. Rb1 g4 38. gxf4 Nh5 39. f5+ Kxf5 40. Rf1+ {[%emt 1:17:00]} Nf4+ {[%emt 1:19:00]} 41. Kh1 {[%emt 0:30:30]} Ke5 {[%emt 0:32:30]} 42. Rdf2 {[%emt 0:18:10]} Rd7 {[%emt 0:04:30]} 43. Rd1 {[%emt 0:02:35]} Rh7 {[%emt 0:04:30]} 44. d7 {[%emt 0:02:28]} Rxd7 {[%emt 0:00:30]} 45. d6 {[%emt 0:00:00]} Ke6 {[%emt 0:01:30]} 46. Rff1 {[%emt 0:04:41]} Rh7 {[%emt 0:04:02]} 47. Rfe1 {[%emt 0:02:46]} Ne2 {[%emt 0:00:12]} 48. Kg2 {[%emt 0:01:43]} Kd7 {[%emt 0:00:16]} 49. Bf2 {[%emt 0:00:25]} Nf4+ {[%emt 0:05:20]} 50. Kh1 {[%emt 0:00:01]} Ne2 {[%emt 0:00:10]} 51. Rc1 {[%emt 0:01:18]} Rh3 {[%emt 0:05:34]} 52. Rc7+ {[%emt 0:00:46]} Kxd6 {[%emt 0:00:21]} 53. Rc2 {[%emt 0:00:20]} g3 {[%emt 0:06:35]} 54. Bc5+ {[%emt 0:00:00]} Kd5 {[%emt 0:00:23]} 55. Rexe2 {[%emt 0:00:04]} 1-0

[Event "Turkish Super League 2019"]
[Site "Konya"]
[Date "2019.07.21"]
[Round "6"]
[White "Tarlabasi, Emirhan"]
[Black "Sevgi, Volkan"]
[Result "1-0"]
[ECO "E12"]
[WhiteElo "2352"]
[BlackElo "2302"]
[Annotator "NA"]
[PlyCount "115"]
[EventDate "2019.07.17"]
[EventType "team-tourn"]
[EventCountry "TUR"]
[SourceTitle "playchess.com"]
[Source "ChessBase"]
[SourceQuality "1"]
[TimeControl "40/5400+30:1800+30"]

1. d4 Nf6 2. c4 e6 3. Nf3 b6 4. a3 Ba6 5. Nbd2 d5 6. e3 Be7 7. Bd3 O-O 8. b3 c5 9. dxc5 bxc5 10. O-O Bb7 11. Bb2 Nbd7 12. Qc2 Bd6 13. Rac1 Re8 14. Rfe1 Qb8 15. cxd5 exd5 16. e4 d4 17. b4 cxb4 18. Bxd4 a5 19. axb4 axb4 20. Nc4 Bc5 21. Bb2 b3 22. Qb1 Qf4 23. Ncd2 Ng4 24. Re2 Re6 25. g3 Qb8 26. Nxb3 Bxf2+ 27. Rxf2 Nxf2 28. Kxf2 Nf6 29. Bxf6 Rxf6 30. Nc5 Bc6 31. Qxb8+ Rxb8 32. Ke3 Rd8 33. Nd4 g6 34. e5 Re8 35. Ne4 Rxe5 {[%emt 1:45:43]} 36. Rxc6 {[%emt 1:47:05]} Rxc6 {[%emt 0:00:30]} 37. Nxc6 {[%emt 0:00:30]} Re6 {[%emt 0:00:30]} 38. Nd4 {[%emt 0:00:30]} Re7 {[%emt 0:00:30]} 39. g4 {[%emt 0:00:30]} h6 {[%emt 0:00:30]} 40. Bc4 {[%emt 0:00:00]} Kg7 {[%emt 0:01:17]} 41. h4 {[%emt 0:01:55]} Rc7 {[%emt 0:06:30]} 42. Nd6 {[%emt 0:02:30]} Re7+ {[%emt 0:04:30]} 43. Kd3 {[%emt 0:00:30]} Re1 {[%emt 0:03:04]} 44. Nxf7 {[%emt 0:02:30]} Rh1 {[%emt 0:01:11]} 45. Nf3 {[%emt 0:01:30]} Rf1 {[%emt 0:02:05]} 46. N7e5 {[%emt 0:00:30]} Kf6 {[%emt 0:00:35]} 47. g5+ {[%emt 0:00:30]} hxg5 {[%emt 0:00:30]} 48. hxg5+ {[%emt 0:00:00]} Kg7 {[%emt 0:01:15]} 49. Ke3 {[%emt 0:00:00]} Ra1 {[%emt 0:00:00]} 50. Bd3 {[%emt 0:00:30]} Ra8 {[%emt 0:02:20]} 51. Nxg6 {[%emt 0:00:30]} Re8+ {[%emt 0:00:30]} 52. Nge5 {[%emt 0:00:30]} Rh8 {[%emt 0:00:00]} 53. Nd4 {[%emt 0:00:30]} Rh3+ {[%emt 0:00:00]} 54. Kf4 {[%emt 0:00:30]} Rh1 {[%emt 0:00:02]} 55. Nf5+ {[%emt 0:00:30]} Kh8 {[%emt 0:00:09]} 56. g6 {[%emt 0:01:30]} Rh3 {[%emt 0:01:14]} 57. Nf7+ {[%emt 0:00:30]} Kg8 {[%emt 0:00:07]} 58. N7h6+ {[%emt 0:00:00]} 1-0

[Event "Turkish Super League 2019"]
[Site "Konya"]
[Date "2019.07.21"]
[Round "6"]
[White "Kamer, Kayra"]
[Black "Lobanov, Sergei"]
[Result "0-1"]
[ECO "D46"]
[WhiteElo "2340"]
[BlackElo "2505"]
[Annotator "ChessBase"]
[PlyCount "76"]
[EventDate "2019.07.17"]
[EventType "team-tourn"]
[EventCountry "TUR"]
[SourceTitle "playchess.com"]
[Source "ChessBase"]
[SourceQuality "1"]
[TimeControl "40/5400+30:1800+30"]

1. Nf3 {[%emt 0:00:30]} d5 {[%emt 0:00:30]} 2. d4 {[%emt 0:00:30]} Nf6 {[%emt 0:00:30]} 3. c4 {[%emt 0:00:30]} c6 {[%emt 0:00:30]} 4. e3 {[%emt 0:03:30]} e6 {[%emt 0:01:30]} 5. Nc3 {[%emt 0:00:30]} Nbd7 {[%emt 0:00:30]} 6. Qc2 {[%emt 0:00:30]} Bd6 {[%emt 0:03:30]} 7. Bd3 {[%emt 0:04:30]} O-O {[%emt 0:00:00]} 8. e4 {[%emt 0:02:30]} dxc4 {[%emt 0:04:00]} 9. Bxc4 {[%emt 0:00:30]} e5 {[%emt 0:00:00]} 10. dxe5 {[%emt 0:02:30]} Nxe5 {[%emt 0:00:00]} 11. Nxe5 {[%emt 0:01:30]} Bxe5 {[%emt 0:00:30]} 12. Be3 {[%emt 0:00:30]} Ng4 {[%emt 0:04:30]} 13. Bc5 {[%emt 0:00:30]} Re8 {[%emt 0:00:30]} 14. f4 {[%emt 0:07:30]} Qa5 {[%emt 0:04:30]} 15. b4 {[%emt 0:09:30]} Bxc3+ {[%emt 0:00:30]} 16. Qxc3 {[%emt 0:00:30]} Rxe4+ {[%emt 0:00:00]} 17. Kf1 {[%emt 0:02:30]} Rxf4+ {[%emt 0:10:00]} 18. Kg1 {[%emt 0:00:30]} Qd8 {[%emt 0:00:00]} 19. g3 {[%emt 0:01:30]} Re4 {[%emt 0:06:00]} 20. Kg2 {[%emt 0:14:30]} Rxc4 {[%emt 0:08:30]} 21. Qxc4 {[%emt 0:00:30]} Be6 {[%emt 0:00:00]} 22. Qd4 {[%emt 0:04:30]} Bd5+ {[%emt 0:00:00]} 23. Kh3 {[%emt 0:00:30]} Qd7 {[%emt 0:01:30]} 24. Kh4 {[%emt 0:00:30]} f6 {[%emt 0:00:30]} 25. Qxg4 {[%emt 0:03:30]} g5+ {[%emt 0:00:00]} 26. Kh3 {[%emt 0:00:30]} Be6 {[%emt 0:00:00]} 27. Qxe6+ {[%emt 0:00:30]} Qxe6+ {[%emt 0:00:30]} 28. Kg2 {[%emt 0:00:00]} Qe4+ {[%emt 0:00:30]} 29. Kf2 {[%emt 0:00:00]} Rd8 {[%emt 0:00:30]} 30. Rhd1 {[%emt 0:00:00]} Qc2+ {[%emt 0:00:30]} 31. Ke1 {[%emt 0:00:00]} Re8+ {[%emt 0:00:00]} 32. Kf1 {[%emt 0:00:30]} Qxh2 {[%emt 0:00:00]} 33. Re1 {[%emt 0:00:00]} Rxe1+ {[%emt 0:00:30]} 34. Rxe1 {[%emt 0:00:00]} b6 {[%emt 0:00:00]} 35. Re8+ {[%emt 0:00:30]} Kf7 {[%emt 0:00:00]} 36. Re7+ {[%emt 0:00:30]} Kg6 {[%emt 0:00:30]} 37. Bf2 {[%emt 0:00:00]} Qh1+ {[%emt 0:00:00]} 38. Ke2 {[%emt 0:00:00]} Qb1 {[%emt 0:00:00]} 0-1

[Event "Turkish Super League 2019"]
[Site "Konya"]
[Date "2019.07.21"]
[Round "6"]
[White "Tasdogen, Dincer"]
[Black "Tezcan, Emre"]
[Result "1/2-1/2"]
[ECO "B50"]
[WhiteElo "2310"]
[BlackElo "2082"]
[Annotator "NA"]
[PlyCount "115"]
[EventDate "2019.07.17"]
[EventType "team-tourn"]
[EventCountry "TUR"]
[SourceTitle "playchess.com"]
[Source "ChessBase"]
[SourceQuality "1"]
[TimeControl "40/5400+30:1800+30"]

1. e4 c5 2. Nf3 d6 3. c3 Nf6 4. h3 g6 5. Bd3 Bg7 6. O-O Nc6 7. Bc2 e5 8. a3 O-O 9. b4 Nh5 10. d3 Qe7 11. Re1 a6 12. Nbd2 Nf4 13. Nc4 Qc7 14. Be3 b5 15. Ncd2 Qe7 16. bxc5 dxc5 17. d4 cxd4 18. cxd4 g5 19. d5 Na5 20. Bb6 Nb7 21. Nh2 Nd6 22. a4 Bd7 23. Ng4 h5 24. Ne3 Qf6 25. Bc5 Rfc8 26. Ba3 g4 27. hxg4 hxg4 28. Ndf1 Nc4 29. Bc1 Nxe3 30. Nxe3 Qh4 31. g3 Qh5 32. Nf5 Bxf5 33. gxf4 exf4 34. Bxf4 Bxa1 35. exf5 Bf6 36. d6 Rc4 37. Bg3 Kg7 38. Be4 Rh8 39. Bg2 Qxf5 40. axb5 axb5 {[%emt 1:16:00]} 41. Qe2 {[%emt 1:53:30]} Rhc8 {[%emt 0:36:30]} 42. Bb7 {[%emt 0:05:30]} Rb8 {[%emt 0:04:30]} 43. Bg2 {[%emt 0:04:59]} Rd8 {[%emt 0:05:11]} 44. Rd1 {[%emt 0:02:53]} Rc2 {[%emt 0:01:56]} 45. Be4 {[%emt 0:03:10]} Rxe2 {[%emt 0:00:13]} 46. Bxf5 {[%emt 0:00:00]} Ra2 {[%emt 0:02:33]} 47. Rd5 {[%emt 0:04:13]} b4 {[%emt 0:00:48]} 48. Rb5 {[%emt 0:00:06]} Bc3 {[%emt 0:03:46]} 49. Rb7 {[%emt 0:00:02]} Rd2 {[%emt 0:01:23]} 50. Be6 {[%emt 0:06:01]} R8xd6 {[%emt 0:02:13]} 51. Bxd6 {[%emt 0:00:45]} Rxd6 {[%emt 0:00:02]} 52. Rxf7+ {[%emt 0:01:05]} Kg6 {[%emt 0:00:13]} 53. Bb3 {[%emt 0:00:05]} Rd2 {[%emt 0:01:17]} 54. Rf4 {[%emt 0:00:43]} Kg5 {[%emt 0:00:46]} 55. Rf8 {[%emt 0:00:05]} Bd4 {[%emt 0:02:20]} 56. Kf1 {[%emt 0:00:43]} Bc5 {[%emt 0:02:22]} 57. Rf7 {[%emt 0:00:45]} Rb2 {[%emt 0:01:08]} 58. Be6 {[%emt 0:00:10]} 1/2-1/2

[Event "Turkish Super League 2019"]
[Site "Konya"]
[Date "2019.07.21"]
[Round "6"]
[White "Maltsevskaya, Aleksandra"]
[Black "Mammadzada, Gunay"]
[Result "0-1"]
[ECO "E11"]
[WhiteElo "2294"]
[BlackElo "2427"]
[Annotator "NA"]
[PlyCount "120"]
[EventDate "2019.07.17"]
[EventType "team-tourn"]
[EventCountry "TUR"]
[SourceTitle "playchess.com"]
[Source "ChessBase"]
[SourceQuality "1"]
[TimeControl "40/5400+30:1800+30"]

1. d4 Nf6 2. Nf3 e6 3. c4 Bb4+ 4. Nbd2 O-O 5. a3 Be7 6. e4 d6 7. Qc2 Nfd7 8. Be2 e5 9. dxe5 dxe5 10. O-O a5 11. Rd1 c6 12. Nf1 Qc7 13. Ng3 Re8 14. Bd2 a4 15. Bc3 Bf8 16. Rf1 Nc5 17. Ne1 Nbd7 18. Nd3 Nxd3 19. Qxd3 Nc5 20. Qe3 Nb3 21. Rad1 Bc5 22. Qg5 f6 23. Qh4 Be6 24. Bg4 Qf7 25. Nf5 Bxf5 26. Bxf5 g6 27. Rd7 Re7 28. Rxe7 Qxe7 29. Bg4 Bd4 30. Qg3 Qc5 31. Bxd4 Qxd4 32. Qh4 Rf8 33. Rd1 Qxc4 34. Qh6 Nd4 35. h4 Qf7 36. Qe3 Kg7 37. h5 {[%emt 1:47:47]} gxh5 {[%emt 1:47:22]} 38. Bf5 {[%emt 0:00:30]} Kh8 {[%emt 0:00:30]} 39. g3 {[%emt 0:00:30]} Qg7 {[%emt 0:00:30]} 40. Kg2 {[%emt 0:00:00]} Qg5 {[%emt 0:00:00]} 41. f4 {[%emt 0:05:43]} Nxf5 {[%emt 0:04:08]} 42. exf5 {[%emt 0:00:30]} Qxf5 {[%emt 0:00:30]} 43. fxe5 {[%emt 0:06:30]} fxe5 {[%emt 0:01:30]} 44. Re1 {[%emt 0:00:30]} h4 {[%emt 0:07:54]} 45. gxh4 {[%emt 0:03:32]} Rd8 {[%emt 0:00:54]} 46. Qxe5+ {[%emt 0:03:22]} Qxe5 {[%emt 0:00:05]} 47. Rxe5 {[%emt 0:00:00]} Rd2+ {[%emt 0:00:10]} 48. Kg3 {[%emt 0:00:09]} Rxb2 {[%emt 0:00:27]} 49. Re7 {[%emt 0:01:30]} c5 {[%emt 0:07:43]} 50. Kf4 {[%emt 0:04:52]} b5 {[%emt 0:04:33]} 51. h5 {[%emt 0:04:05]} b4 {[%emt 0:02:51]} 52. h6 {[%emt 0:03:30]} Rf2+ {[%emt 0:00:11]} 53. Ke3 {[%emt 0:01:27]} Rf8 {[%emt 0:00:02]} 54. Kd3 {[%emt 0:01:06]} Rb8 {[%emt 0:01:56]} 55. Kc2 {[%emt 0:00:16]} bxa3 {[%emt 0:00:42]} 56. Ra7 {[%emt 0:00:19]} Kg8 {[%emt 0:01:27]} 57. Rg7+ {[%emt 0:01:35]} Kf8 {[%emt 0:01:19]} 58. Rxh7 {[%emt 0:00:22]} Rb2+ {[%emt 0:03:36]} 59. Kc3 {[%emt 0:01:22]} Rb3+ {[%emt 0:00:07]} 60. Kc4 {[%emt 0:00:28]} a2 {[%emt 0:00:05]} 0-1

[Event "Turkish Super League 2019"]
[Site "Konya"]
[Date "2019.07.21"]
[Round "6"]
[White "Kilic, Efe Mert"]
[Black "Yurtseven, Melih"]
[Result "1-0"]
[ECO "A07"]
[WhiteElo "2275"]
[BlackElo "2381"]
[Annotator "NA"]
[PlyCount "115"]
[EventDate "2019.07.17"]
[EventType "team-tourn"]
[EventCountry "TUR"]
[SourceTitle "playchess.com"]
[Source "ChessBase"]
[SourceQuality "1"]
[TimeControl "40/5400+30:1800+30"]

1. Nf3 d5 2. b3 Nf6 3. Bb2 Bf5 4. g3 e6 5. Bg2 a5 6. c4 a4 7. Qc1 h6 8. O-O Be7 9. d3 O-O 10. Na3 Bh7 11. Rd1 Na6 12. Nc2 c6 13. Ne5 Nd7 14. Nxd7 Qxd7 15. b4 Nc7 16. a3 Rfe8 17. e4 Bf8 18. f4 c5 19. b5 Rad8 20. Ne3 Na8 21. cxd5 exd5 22. Nxd5 Qxb5 23. Qc3 Qc6 24. Qa5 b6 25. Qa6 h5 26. h4 Qg6 27. Kf2 Qc6 28. Rac1 Rd6 29. Bf3 Qd7 30. Be5 Rh6 31. Kg2 Kh8 32. Rb1 Bg8 33. Bc3 Rb8 34. Qb5 Qxb5 35. Rxb5 Rc6 36. Rdb1 f6 {[%emt 1:47:26]} 37. e5 {[%emt 1:47:48]} Rcc8 {[%emt 0:00:30]} 38. Nxb6 {[%emt 0:00:30]} Nxb6 {[%emt 0:00:30]} 39. Rxb6 {[%emt 0:00:30]} Rxb6 {[%emt 0:00:30]} 40. Rxb6 {[%emt 0:00:30]} fxe5 {[%emt 0:00:00]} 41. Bxe5 {[%emt 0:01:12]} Bf7 {[%emt 0:02:34]} 42. Ra6 {[%emt 0:07:30]} Rd8 {[%emt 0:07:30]} 43. Be4 {[%emt 0:01:30]} Bb3 {[%emt 0:01:30]} 44. Rh6+ {[%emt 0:07:36]} Kg8 {[%emt 0:00:00]} 45. Bh7+ {[%emt 0:01:03]} Kf7 {[%emt 0:01:00]} 46. Bg6+ {[%emt 0:00:03]} Ke6 {[%emt 0:01:33]} 47. Rxh5 {[%emt 0:03:38]} Bc2 {[%emt 0:00:27]} 48. Rh8 {[%emt 0:04:20]} Ke7 {[%emt 0:05:48]} 49. Bc7 {[%emt 0:05:02]} Rc8 {[%emt 0:10:06]} 50. Ba5 {[%emt 0:00:53]} Rb8 {[%emt 0:03:53]} 51. h5 {[%emt 0:00:18]} Bb1 {[%emt 0:00:49]} 52. Kh3 {[%emt 0:01:01]} Kd6 {[%emt 0:01:01]} 53. d4 {[%emt 0:00:53]} Bxg6 {[%emt 0:00:36]} 54. dxc5+ {[%emt 0:00:32]} Kxc5 {[%emt 0:00:30]} 55. hxg6 {[%emt 0:00:09]} Kc4 {[%emt 0:00:21]} 56. Bc7 {[%emt 0:01:46]} Bd6 {[%emt 0:00:54]} 57. Bxb8 {[%emt 0:00:09]} Bxa3 {[%emt 0:00:10]} 58. Be5 {[%emt 0:00:04]} 1-0

[Event "Turkish Super League 2019"]
[Site "Konya"]
[Date "2019.07.21"]
[Round "6"]
[White "Gunduz, Umut Erdem"]
[Black "Tanriverdi, Enes"]
[Result "0-1"]
[ECO "C00"]
[WhiteElo "2261"]
[BlackElo "2374"]
[Annotator "NA"]
[PlyCount "86"]
[EventDate "2019.07.17"]
[EventType "team-tourn"]
[EventCountry "TUR"]
[SourceTitle "playchess.com"]
[Source "ChessBase"]
[SourceQuality "1"]
[TimeControl "40/5400+30:1800+30"]

1. e4 c5 2. Nf3 e6 3. Qe2 Nc6 4. g3 g6 5. Bg2 Bg7 6. c3 Nge7 7. O-O O-O 8. d4 cxd4 9. cxd4 d5 10. Nc3 dxe4 11. Nxe4 Nf5 12. Bg5 f6 13. Bd2 Ncxd4 14. Nxd4 Nxd4 15. Qc4 b5 16. Qd3 Bb7 17. Bb4 f5 18. Nf6+ Rxf6 19. Bxb7 Rb8 20. Bg2 e5 21. Rad1 Rf7 22. Bc5 e4 23. Qb1 Rd7 24. Kh1 h5 25. Rd2 Bh6 26. Rxd4 Rxd4 27. Bxa7 Rc8 28. Bxd4 Qxd4 29. a3 Kg7 30. b4 Bd2 31. Qd1 Qd3 32. Qa1+ Bc3 33. Qa2 Qc4 34. Qb1 h4 35. Rc1 hxg3 36. hxg3 e3 37. fxe3 Qe2 38. Qc2 Qxe3 39. Bb7 Rc7 40. Kg2 Be5 41. Bc6 Qxg3+ 42. Kf1 Qxa3 {[%emt 1:44:00]} 43. Rb1 {[%emt 1:52:30]} Rxc6 {[%emt 0:00:30]} 0-1